bitfinex-derivatives/quotes_ETHF0:USTF0_20250908
["timestamp","ask_amount","ask_price","bid_price","bid_amount"]
[1757362922657,0.7101,4291.2,4291.1,0.5188]
[1757362923454,4.7101,4291.2,4290.2,33.579]
[1757362923755,0.7101,4290.4,4290.0,0.1195]
[1757362923950,0.2016,4290.3,4290.2,0.4003]
[1757362924156,0.2016,4290.3,4290.2,0.7233]
[1757362924659,0.4111,4290.3,4290.2,0.7233]
[1757362924854,0.7101,4290.3,4290.2,0.7233]
[1757362928260,0.7101,4290.3,4290.2,0.5188]
[1757362928661,0.299,4290.2,4289.7,0.56]
[1757362928967,0.7101,4289.8,4289.7,0.7558]
[1757362929654,0.299,4289.7,4289.1,0.323]
[1757362929856,0.2016,4289.2,4289.1,0.7233]
[1757362930158,0.299,4289.7,4289.1,0.4003]
[1757362930354,0.2016,4289.6,4289.5,0.5198]
[1757362931065,0.2016,4289.6,4289.5,0.8428]
[1757362932455,0.5006,4290.4,4290.3,0.1958]
[1757362932656,0.299,4291.2,4290.3,0.4003]
[1757362932858,0.99340085,4291.1,4291.0,0.5198]
[1757362933162,0.4111,4291.1,4291.0,0.8428]
[1757362933557,0.2016,4291.1,4291.0,0.8428]
[1757362933753,0.299,4291.5,4291.0,0.8428]
[1757362933965,0.299,4291.8,4291.5,0.3153]
[1757362934266,0.9935119,4291.7,4291.6,0.7233]
[1757362934859,0.299,4292.4,4291.7,0.323]
[1757362935062,2.06372871,4293.8,4291.5,0.1195]
[1757362935063,0.58271459,4292.3,4292.2,0.7233]
[1757362935256,0.4111,4292.3,4292.2,0.7233]
[1757362936360,0.7276,4292.3,4292.0,0.1195]
[1757362936559,0.4126,4292.2,4292.1,0.7055]
[1757362938663,0.2085,4292.2,4292.1,0.7055]
[1757362940067,0.0707,4293.0,4292.1,0.7055]
[1757362940272,0.0707,4293.0,4292.2,0.3026]
[1757362940273,0.8988369,4292.9,4292.2,0.3026]
[1757362940457,0.2085,4292.3,4292.2,0.7055]
[1757362941467,0.0707,4293.0,4291.6,0.3026]
[1757362941468,0.3165,4292.2,4291.6,0.3026]
[1757362941668,0.7291,4291.7,4291.1,0.3026]
[1757362943272,0.4126,4291.7,4291.6,0.7055]
[1757362943473,0.2085,4291.7,4291.6,0.7055]
[1757362946173,0.2085,4292.1,4292.0,0.8346]
[1757362946368,0.7291,4292.5,4292.4,0.2017]
[1757362946573,1.31106259,4292.5,4292.4,0.5043]
[1757362946968,0.7291,4292.5,4292.4,0.5043]
[1757362947366,0.7291,4292.5,4292.4,0.7055]
[1757362947566,0.4126,4292.5,4292.4,0.7055]
[1757362947774,0.7291,4292.5,4292.4,0.7055]
[1757362948072,0.4126,4292.5,4292.4,0.7055]
[1757362948272,0.7291,4293.0,4292.9,0.5043]
[1757362948466,1.31073214,4293.0,4292.9,0.5043]
[1757362949475,0.7291,4293.0,4292.9,0.5043]
[1757362949869,1.31057278,4293.0,4292.9,0.5043]
[1757362950172,1.31057278,4293.0,4292.9,0.3026]
[1757362950871,0.3165,4292.9,4292.6,0.3026]
[1757362951077,0.7291,4292.7,4292.6,0.3026]
[1757362951274,0.7291,4292.7,4292.6,0.5043]
[1757362951475,0.7291,4292.7,4292.6,0.7055]
[1757362952970,0.4126,4292.7,4292.6,0.7055]
[1757362953371,0.3165,4293.1,4292.6,0.7055]
[1757362953569,0.58107174,4293.0,4292.7,0.3026]
[1757362953774,0.7291,4293.0,4292.9,0.7055]
[1757362953970,0.4126,4293.0,4292.9,0.7055]
[1757362955077,0.7291,4293.0,4292.9,0.7055]
[1757362956187,0.4126,4293.0,4292.9,0.7055]
[1757362957588,0.7291,4293.0,4292.9,0.7055]
[1757362958490,0.4126,4293.0,4292.9,0.7055]
[1757362959295,0.99426323,4293.0,4292.9,0.7055]
[1757362960195,0.4126,4293.0,4292.9,0.7055]
[1757362960591,0.99475447,4293.0,4292.9,0.7055]
[1757362961990,0.58215447,4293.0,4292.9,0.7055]
[1757362962696,0.99475447,4293.0,4292.9,0.7055]
[1757362963091,1.31125447,4293.0,4292.9,0.7055]
[1757362963490,1.31125447,4293.0,4292.9,0.5043]
[1757362964896,0.99475447,4293.0,4292.9,0.7055]
[1757362965892,1.31125447,4293.0,4292.9,0.7055]
[1757362968695,0.99475447,4293.0,4292.9,0.7055]
[1757362968895,0.58215447,4293.0,4292.9,0.7055]
[1757362970203,0.79735447,4293.0,4292.9,0.7055]
[1757362971597,0.58215447,4293.0,4292.9,0.7055]
[1757362974104,0.79735447,4293.0,4292.9,0.7055]
[1757362974910,1.30975447,4293.0,4292.9,0.7055]
[1757362975211,1.30975447,4293.0,4292.9,0.5043]
[1757362975508,1.30975447,4293.0,4292.9,0.5113]
[1757362976311,1.30975447,4293.0,4292.9,0.7218]
[1757362976507,1.30975447,4293.0,4292.6,0.3188]
[1757362976811,0.7276,4292.7,4292.6,0.5275]
[1757362977003,1.30975447,4292.7,4292.6,0.5275]
[1757362978005,0.99895447,4292.7,4292.6,0.738]
[1757362978404,1.30975447,4292.7,4292.6,0.738]
[1757362979706,1.30975447,4292.7,4292.6,0.5275]
[1757362980309,1.30975447,4292.7,4292.1,0.3188]
[1757362980611,0.7276,4292.2,4292.1,0.5275]
[1757362980902,1.30975447,4292.2,4292.1,0.5275]
[1757362981313,1.30975447,4292.2,4291.6,0.3188]
[1757362981604,0.7276,4291.7,4291.1,33.56]
[1757362981803,0.4168,4291.2,4291.1,0.738]
[1757362982004,0.7276,4291.2,4291.1,0.738]
[1757362982311,1.30975447,4291.2,4291.1,0.738]
[1757362982507,1.30975447,4291.2,4290.5,0.1295]
[1757362982713,0.7276,4290.7,4290.6,0.3188]
[1757362982898,1.31029373,4290.7,4290.6,0.3188]
[1757362983209,0.7276,4290.7,4290.1,0.3188]
[1757362984306,0.7276,4290.7,4289.0,0.36076639]
[1757362984307,0.7276,4288.1,4288.0,3.44700286]
[1757362984612,0.4168,4288.1,4288.0,0.8675]
[1757362984806,0.99783485,4288.1,4288.0,0.8675]
[1757362985208,0.4168,4288.1,4288.0,0.8675]
[1757362985508,0.2152,4288.1,4288.0,0.8675]
[1757362985701,0.4168,4288.1,4288.0,0.8675]
[1757362986309,0.7276,4288.1,4288.0,0.5275]
[1757362987807,0.7276,4288.1,4288.0,0.657]
[1757362988405,0.7276,4288.1,4288.0,0.8675]
[1757362990216,12.7,4288.9,4288.0,0.8675]
[1757362990217,0.3108,4288.6,4288.0,0.5487]
[1757362990512,0.9686,4288.5,4288.4,0.5275]
[1757362991309,0.9686,4288.5,4288.4,0.3188]
[1757362991615,0.4168,4288.2,4288.1,0.2087]
[1757362991914,0.7276,4288.2,4288.1,0.5275]
[1757362994516,4.9608,4288.2,4287.1,0.3188]
[1757362994717,4.9608,4288.2,4286.6,0.3188]
[1757362994718,0.91827216,4288.2,4286.6,0.3188]
[1757362994906,0.4168,4286.7,4286.6,0.738]
[1757362995111,0.7276,4286.7,4286.1,0.3188]
[1757362995309,0.7276,4286.7,4286.0,0.1295]
[1757362995310,0.6588,4286.6,4286.5,0.2087]
[1757362995505,0.6588,4286.6,4286.5,0.8675]
[1757362995907,0.2152,4286.6,4286.5,0.8675]
[1757362996107,0.4168,4286.6,4286.5,0.8675]
[1757362996312,0.7386,4286.6,4286.5,0.8675]
[1757362996712,0.7386,4286.6,4286.0,0.1295]
[1757362997114,0.4052,4286.1,4286.0,0.625]
[1757362997318,0.727,4286.1,4286.0,0.625]
[1757362998617,0.4052,4286.1,4286.0,0.8222]
[1757362999212,0.3218,4286.8,4286.1,0.2971]
[1757362999414,0.1973,4286.4,4286.0,0.1295]
[1757362999615,0.4052,4286.4,4286.3,0.6927]
[1757363001322,0.727,4286.4,4286.3,0.6927]
[1757363001821,0.4052,4286.4,4286.3,0.6927]
[1757363002916,1.36899081,4288.0,4286.3,0.6927]
[1757363003219,0.1973,4287.3,4287.2,0.6927]
[1757363004418,0.4052,4287.3,4287.2,0.6927]
[1757363004820,0.4052,4287.3,4286.5,0.1278]
[1757363004821,4.96025,4287.3,4286.6,0.2971]
[1757363005018,0.0806,4287.5,4286.6,0.2971]
[1757363005019,0.727,4286.7,4286.6,0.4955]
[1757363005322,0.4052,4286.7,4286.6,0.6927]
[1757363005520,0.242,4287.4,4287.0,0.1278]
[1757363005823,0.6472,4287.4,4287.3,0.3956]
[1757363006117,0.4052,4287.4,4287.3,0.6927]
[1757363007422,0.9922208,4287.4,4287.3,0.6927]
[1757363008620,1.3140208,4287.4,4287.3,0.6927]
[1757363009122,1.3140208,4287.4,4287.0,0.2971]
[1757363009322,0.3226,4287.5,4287.0,0.4955]
[1757363009323,0.727,4287.1,4287.0,0.4955]
[1757363009518,1.3140208,4287.1,4287.0,0.4955]
[1757363009726,1.3140208,4287.1,4287.0,0.6233]
[1757363010221,0.5870208,4287.1,4287.0,0.8205]
[1757363010424,0.78633699,4287.4,4287.3,0.3956]
[1757363010725,1.31603699,4287.4,4287.3,0.6927]
[1757363011517,1.31603699,4287.4,4287.3,0.4955]
[1757363012021,1.31603699,4287.4,4287.0,0.1278]
[1757363012221,0.727,4287.2,4287.1,0.4955]
[1757363012423,1.31603699,4287.2,4287.1,0.6927]
[1757363013515,1.31603699,4287.2,4286.5,0.1278]
[1757363013516,1.31603699,4287.2,4286.6,0.2971]
[1757363013711,0.4052,4286.7,4286.6,0.6927]
[1757363013913,1.97351737,4286.7,4286.6,0.6927]
[1757363014118,1.31603699,4286.7,4286.6,0.4955]
[1757363015228,1.31603699,4286.7,4286.1,0.2971]
[1757363015524,1.97550219,4286.2,4286.1,0.4955]
[1757363015725,2.56453918,4286.2,4286.1,0.6927]
[1757363015927,0.99423699,4286.2,4286.1,0.6927]
[1757363020430,1.55703699,4286.2,4286.1,0.4955]
[1757363020729,1.55703699,4286.2,4286.1,0.2971]
[1757363021229,1.55703699,4286.2,4285.0,0.1278]
[1757363021230,1.55703699,4286.2,4285.6,0.2971]
[1757363021431,1.97688567,4285.9,4285.8,0.4955]
[1757363021630,2.56592266,4285.9,4285.8,0.4955]
[1757363021832,1.31603699,4285.9,4285.8,0.4955]
[1757363022128,0.58903699,4285.9,4285.8,0.6927]
[1757363023127,0.58903699,4286.0,4285.8,0.3956]
[1757363023433,0.58903699,4285.9,4285.8,0.6927]
[1757363023821,0.78845641,4286.1,4286.0,0.5234]
[1757363024025,0.78845673,4286.1,4286.0,0.8205]
[1757363025527,1.31815673,4286.1,4286.0,0.8205]
[1757363025734,0.99635673,4286.1,4286.0,0.8205]
[1757363027633,0.99635673,4286.1,4286.0,0.1985]
[1757363027937,1.30075673,4286.1,4286.0,0.5182]
[1757363028436,1.30075673,4286.1,4285.6,0.3197]
[1757363028737,0.6977,4285.7,4285.6,0.5182]
[1757363029039,1.28885673,4285.7,4285.6,0.5182]
[1757363029335,1.28885673,4285.7,4285.6,0.7347]
[1757363030324,0.98445673,4285.7,4285.6,0.7347]
[1757363033442,0.59115673,4285.7,4285.6,0.7347]
[1757363036340,0.59115673,4285.7,4285.6,4.96804]
[1757363036839,0.59115673,4285.7,4285.6,4.7347]
[1757363037339,0.24,4286.3,4285.7,0.3197]
[1757363037641,0.9377,4286.3,4286.2,0.5182]
[1757363037836,1.52201791,4286.3,4286.2,0.5182]
[1757363039240,1.52201791,4286.3,4286.2,0.7347]
[1757363039442,1.21761791,4286.3,4286.2,0.7347]
[1757363039843,0.97761791,4286.3,4286.2,0.7347]
[1757363040042,1.28201791,4286.3,4286.2,0.7347]
[1757363043043,1.28201791,4286.3,4286.2,0.5182]
[1757363043244,1.28201791,4286.3,4286.2,0.3197]
[1757363043645,1.28201791,4286.3,4285.6,0.3197]
[1757363043846,0.1967,4285.7,4285.6,0.7347]
[1757363045748,0.3044,4286.4,4285.7,0.3197]
[1757363045949,0.0921,4286.5,4286.2,0.5182]
[1757363045950,1.28308413,4286.3,4286.2,0.5182]
[1757363046150,0.78208413,4286.3,4286.2,0.7347]
[1757363050354,1.28308413,4286.3,4286.2,0.7347]
[1757363051648,0.58538413,4286.3,4286.2,0.7347]
[1757363051848,0.78208413,4286.3,4286.2,0.7347]
[1757363052354,0.97868413,4286.3,4286.2,0.7347]
[1757363052554,1.28308413,4286.3,4286.2,0.7347]
[1757363054554,1.28308413,4286.3,4286.2,0.3197]
[1757363055053,1.28308413,4286.3,4285.6,0.3197]
[1757363055255,0.6977,4285.7,4285.1,0.3197]
[1757363055456,0.3933,4285.2,4285.1,0.1985]
[1757363055648,0.3933,4285.2,4285.1,0.7347]
[1757363057955,0.3185,4285.7,4285.2,0.318]
[1757363058152,0.4162,4285.3,4285.2,0.752]
[1757363062259,0.7347,4285.3,4285.2,0.752]
[1757363062551,0.4162,4285.3,4285.2,0.752]
[1757363062749,0.2015,4285.3,4285.2,0.752]
[1757363063947,0.3185,4286.0,4285.9,0.2167]
[1757363064158,1.31762629,4286.0,4285.9,0.5347]
[1757363065257,1.43672629,4286.0,4285.5,0.1177]
[1757363065458,0.58292629,4285.9,4285.6,0.318]
[1757363065659,0.7347,4285.7,4285.6,0.5347]
[1757363065860,1.31762629,4285.7,4285.6,0.5347]
[1757363066061,0.99912629,4285.7,4285.6,0.752]
[1757363066259,0.4162,4285.7,4285.6,0.752]
[1757363066458,0.2015,4285.7,4285.6,0.752]
[1757363067762,0.5575,4286.3,4285.6,0.434]
[1757363067950,0.58297495,4286.2,4285.7,0.318]
[1757363068156,1.31767495,4286.1,4286.0,0.6524]
[1757363069962,1.31767495,4286.1,4286.0,0.318]
[1757363071661,1.31767495,4286.1,4286.0,0.5347]
[1757363072362,0.3185,4286.0,4285.9,0.2167]
[1757363072664,1.31767495,4286.0,4285.9,0.5347]
[1757363074760,1.31767495,4286.0,4285.9,0.318]
[1757363076162,1.31767495,4286.0,4285.5,0.1177]
[1757363076364,0.7347,4285.7,4285.6,0.5347]
[1757363078364,0.7347,4285.7,4285.6,0.752]
[1757363078557,0.3185,4286.2,4285.6,0.434]
[1757363078762,1.10328339,4286.1,4286.0,0.5347]
[1757363078963,1.31798339,4286.1,4286.0,0.5347]
[1757363079872,1.31798339,4286.1,4285.5,0.1177]
[1757363080077,0.7347,4285.7,4285.6,0.318]
[1757363080270,0.7347,4285.7,4285.6,0.5347]
[1757363082079,1.31808972,4285.7,4285.6,0.5347]
[1757363084581,1.31808972,4285.7,4285.6,0.752]
[1757363085271,0.58338972,4285.7,4285.6,0.752]
[1757363092384,0.25668972,4285.7,4285.6,4.98534]
[1757363092581,0.1257,4287.0,4286.8,0.4118]
[1757363092781,0.7274,4286.9,4286.8,0.4118]
[1757363093681,0.7274,4286.9,4286.8,0.2082]
[1757363097094,0.7274,4286.9,4286.8,0.4118]
[1757363097486,0.7274,4286.9,4286.8,0.7375]
[1757363100282,0.4087,4286.3,4286.2,0.7375]
[1757363100486,0.7274,4286.3,4286.2,0.2082]
[1757363100890,0.4087,4286.3,4285.5,0.5637]
[1757363101192,0.3187,4286.4,4285.5,0.79702]
[1757363101395,0.1257,4286.5,4285.6,0.3257]
[1757363101584,0.3187,4286.4,4285.6,0.3257]
[1757363101893,0.7274,4285.7,4285.6,0.7375]
[1757363102194,0.7274,4285.7,4285.5,0.238]
[1757363102787,0.7274,4285.7,4285.6,0.2082]
[1757363104093,0.7274,4285.7,4285.5,0.238]
[1757363104596,0.4444,4285.0,4284.6,0.5637]
[1757363104798,0.8531,4285.0,4284.9,0.4118]
[1757363105098,0.8531,4285.0,4284.9,0.7375]
[1757363105493,0.8531,4285.0,4284.9,0.4118]
[1757363105799,0.8531,4285.0,4284.9,0.7375]
[1757363105993,0.8531,4285.0,4284.2,0.06726383]
[1757363105994,0.8531,4285.0,4284.2,0.39296383]
[1757363106199,0.1257,4285.0,4284.2,0.62635383]
[1757363106401,0.3187,4284.9,4284.3,0.3257]
[1757363106594,0.7274,4284.9,4284.8,0.2082]
[1757363107001,0.7274,4284.9,4284.8,0.7375]
[1757363108698,0.516,4284.9,4284.8,0.7375]
[1757363109798,0.3187,4285.4,4284.9,0.3257]
[1757363110004,0.516,4285.4,4285.3,0.7375]
[1757363110206,0.7274,4285.4,4285.3,0.4118]
[1757363112602,0.7274,4285.4,4285.3,0.7375]
[1757363113705,0.7274,4285.4,4284.6,0.3257]
[1757363113896,0.3187,4285.3,4284.6,0.55907]
[1757363114105,0.3187,4285.3,4284.7,0.23337]
[1757363114303,0.1973,4284.8,4284.7,0.64517]
[1757363114502,0.516,4284.8,4284.7,0.7375]
[1757363115307,0.7274,4284.8,4284.7,0.4118]
[1757363115607,0.7274,4284.8,4284.7,0.2082]
[1757363115803,0.7274,4284.8,4284.7,0.4118]
[1757363116106,0.7274,4284.8,4284.7,0.7375]
[1757363116305,0.516,4284.8,4284.7,0.7375]
[1757363118609,0.7328,4284.8,4284.7,0.7375]
[1757363119111,0.7328,4284.8,4284.7,0.4118]
[1757363124811,0.7328,4284.8,4284.7,0.2082]
[1757363125013,0.7461,4284.1,4284.0,0.7153]
[1757363125712,0.7461,4284.1,4284.0,0.4065]
[1757363125914,0.7461,4284.1,4284.0,0.7153]
[1757363128712,0.3188,4284.1,4284.0,0.7153]
[1757363128909,0.3188,4284.4,4284.3,0.7153]
[1757363129210,0.5293,4284.1,4284.0,0.7153]
[1757363130611,0.3188,4284.9,4284.4,0.3088]
[1757363130915,0.5293,4284.5,4284.4,0.7153]
[1757363132921,0.8724,4284.5,4284.4,0.7153]
[1757363133625,0.8724,4284.5,4284.4,0.4065]
[1757363134627,0.8724,4284.5,4284.4,0.1966]
[1757363135915,0.8724,4284.5,4283.9,0.237]
[1757363136615,0.8724,4284.5,4284.4,0.1966]
[1757363136820,0.8724,4284.5,4284.4,0.4065]
[1757363138516,0.1263,4284.0,4283.9,0.237]
[1757363138821,0.5293,4284.1,4284.0,0.7153]
[1757363142524,0.7461,4284.1,4284.0,0.1966]
[1757363147527,0.1305,4284.0,4283.9,0.4365]
[1757363147726,0.8605,4284.0,4283.9,0.4365]
[1757363149332,0.8605,4284.0,4283.9,0.6521]
[1757363149629,0.8605,4284.0,4283.9,0.9667]
[1757363150620,0.1263,4284.5,4284.0,0.3146]
[1757363150828,0.73,4284.4,4284.3,0.4151]
[1757363151920,0.73,4284.4,4284.3,0.1995]
[1757363155334,0.1305,4284.0,4283.7,33.614]
[1757363155532,0.73,4283.8,4283.7,33.9286]
[1757363155830,0.5161,4283.8,4283.7,34.1656]
[1757363156226,0.1263,4284.5,4283.9,0.4151]
[1757363156424,0.73,4284.4,4284.3,0.7297]
[1757363156733,0.6418,4285.0,4284.9,0.7297]
[1757363156929,0.8557,4285.0,4284.9,0.9667]
[1757363157226,0.8557,4285.0,4284.9,0.6521]
[1757363157427,0.3249,4285.5,4285.4,0.7297]
[1757363157622,0.1305,4286.0,4285.4,0.9667]
[1757363157826,0.1992,4285.5,4285.4,0.9667]
[1757363158031,0.6466,4285.5,4285.4,0.9667]
[1757363158228,0.8605,4285.5,4285.4,0.6521]
[1757363159341,0.8605,4285.5,4285.4,0.9667]
[1757363159948,0.1305,4286.0,4285.4,0.9667]
[1757363160244,0.3297,4286.0,4285.9,0.4151]
[1757363160440,0.5436,4286.0,4285.9,0.6521]
[1757363160838,0.8605,4286.0,4285.9,0.6521]
[1757363161545,0.1305,4287.0,4285.9,0.9667]
[1757363161741,0.5436,4287.0,4286.4,0.3146]
[1757363161940,0.5436,4287.0,4286.5,0.237]
[1757363162243,0.4131,4286.6,4286.5,0.4365]
[1757363162439,0.73,4286.6,4286.5,0.4365]
[1757363166450,0.73,4286.6,4286.5,0.6521]
[1757363168849,0.73,4286.6,4286.5,0.4365]
[1757363169942,0.73,4286.6,4286.5,0.6521]
[1757363170141,0.73,4286.6,4286.5,0.9667]
[1757363170546,0.5161,4286.6,4286.5,0.9667]
[1757363171450,0.73,4286.6,4286.5,0.6521]
[1757363172255,0.3169,4286.6,4286.5,0.9667]
[1757363172559,0.5161,4286.6,4286.5,0.9667]
[1757363174557,0.3169,4286.6,4286.5,0.9667]
[1757363175152,0.5161,4286.6,4286.5,0.9667]
[1757363175353,0.5161,4286.6,4286.5,0.7297]
[1757363175558,0.5161,4286.6,4286.5,0.9667]
[1757363176558,0.73,4286.6,4286.5,0.9667]
[1757363176757,0.73,4286.6,4286.5,0.6521]
[1757363176955,0.73,4286.6,4286.5,0.237]
[1757363178055,0.73,4286.6,4286.5,0.6665]
[1757363178955,0.73,4286.6,4286.5,0.9624]
[1757363179359,0.3169,4286.6,4286.5,0.9624]
[1757363179554,0.3107,4286.9,4286.5,1.31339]
[1757363179854,0.5438,4287.0,4286.9,0.2143]
[1757363180048,0.5438,4287.0,4286.9,0.4295]
[1757363180253,0.8545,4287.0,4286.9,0.7254]
[1757363183456,0.8545,4287.0,4286.9,0.4295]
[1757363183661,0.8545,4287.0,4286.8,0.134]
[1757363186062,0.3107,4287.0,4286.9,0.7254]
[1757363186263,0.3107,4287.5,4287.4,0.7254]
[1757363186465,0.5091,4287.5,4287.4,0.7254]
[1757363186964,0.851,4287.5,4287.4,0.7254]
[1757363187564,0.3107,4287.5,4287.4,0.7254]
[1757363187966,0.5091,4287.5,4287.4,0.7254]
[1757363188168,0.851,4287.5,4287.4,0.4295]
[1757363189366,0.851,4287.5,4287.1,0.2959]
[1757363189567,0.851,4287.5,4286.8,0.134]
[1757363189568,0.851,4287.5,4287.2,0.237]
[1757363189764,0.851,4287.5,4286.8,0.2959]
[1757363189971,0.851,4287.0,4286.9,0.4513]
[1757363191170,0.851,4287.0,4286.9,0.9624]
[1757363191569,0.127,4287.5,4287.0,0.2959]
[1757363191570,0.5091,4287.4,4287.0,0.2959]
[1757363191770,0.5091,4287.4,4287.3,0.7254]
[1757363193073,0.724,4287.4,4287.3,0.7254]
[1757363193570,0.3107,4287.4,4287.3,0.7254]
[1757363193769,0.3107,4287.9,4287.4,0.2959]
[1757363193971,0.5091,4288.4,4288.3,0.7254]
[1757363194168,0.5091,4288.4,4288.3,0.9624]
[1757363194370,0.724,4288.4,4288.3,0.4513]
[1757363195174,0.724,4288.4,4288.3,0.237]
[1757363195376,0.851,4288.0,4287.9,0.00349924]
[1757363195674,0.851,4288.0,4287.9,0.11049924]
[1757363196076,0.851,4288.0,4287.9,0.32479924]
[1757363196472,0.851,4288.0,4287.9,0.11049924]
[1757363197073,0.851,4288.0,4287.9,0.32479924]
[1757363197375,0.5438,4288.5,4288.4,0.2143]
[1757363197569,0.8545,4288.5,4288.4,0.2143]
[1757363198077,0.5438,4288.5,4287.9,0.40639924]
[1757363198377,0.1984,4288.0,4287.9,0.83589924]
[1757363198678,0.5091,4288.0,4287.9,0.83589924]
[1757363201674,0.3107,4288.0,4287.9,0.83589924]
[1757363202076,0.5091,4288.0,4287.9,0.83589924]
[1757363202776,0.1305,4288.5,4288.4,0.4295]
[1757363202976,0.3107,4288.5,4288.4,0.7254]
[1757363203279,0.5091,4288.5,4288.4,0.7254]
[1757363203679,0.3107,4288.9,4288.4,0.7254]
[1757363203879,0.5403,4289.0,4288.9,0.4295]
[1757363204074,0.5403,4289.0,4288.9,0.6245]
[1757363204582,0.851,4289.0,4288.9,0.6245]
[1757363205280,0.851,4289.0,4288.9,0.9204]
[1757363205779,0.851,4289.0,4288.9,0.6245]
[1757363212788,0.851,4289.0,4288.9,0.921]
[1757363213483,0.851,4289.0,4288.9,0.6245]
[1757363213687,0.851,4289.0,4288.9,0.4093]
[1757363220197,0.851,4289.0,4288.9,0.195]
[1757363220902,0.851,4289.0,4288.9,0.4059]
[1757363221201,0.851,4289.0,4288.9,0.195]
[1757363221607,0.121,4288.5,4288.1,33.594]
[1757363221904,0.7337,4288.2,4288.1,33.70206545]
[1757363222106,0.7337,4288.2,4288.1,34.23556545]
[1757363223205,0.5222,4288.2,4288.1,34.23556545]
[1757363223508,0.3147,4288.2,4288.1,34.23556545]
[1757363224703,0.121,4288.5,4288.1,34.23556545]
[1757363224907,0.6432,4288.5,4288.4,0.7096]
[1757363226208,0.3147,4288.4,4288.1,33.831]
[1757363226407,0.7337,4288.2,4288.1,33.831]
[1757363227203,0.7337,4288.2,4288.1,34.1275]
[1757363227506,0.7337,4288.2,4288.1,33.594]
[1757363227809,0.7337,4288.2,4288.1,33.831]
[1757363233312,0.127,4289.0,4288.4,0.7096]
[1757363233504,0.546,4289.0,4288.9,0.2109]
[1757363233700,0.546,4289.0,4288.9,0.237]
[1757363234106,0.8607,4289.0,4288.9,0.237]
[1757363236513,0.8607,4289.0,4288.9,0.4479]
[1757363236910,0.8607,4289.0,4288.9,0.6529]
[1757363237112,0.5222,4289.0,4288.9,0.9561]
[1757363237312,0.3147,4289.0,4288.9,0.9561]
[1757363237505,0.3049,4288.9,4288.1,33.594]
[1757363237704,0.8349,4289.0,4288.9,0.4191]
[1757363237909,0.8349,4289.0,4288.9,0.6561]
[1757363238311,0.8349,4289.0,4288.9,0.9593]
[1757363239422,0.5049,4289.0,4288.9,0.9593]
[1757363242017,0.127,4289.5,4288.9,0.9593]
[1757363242217,0.58446952,4289.4,4289.0,0.3032]
[1757363242417,0.4113,4289.4,4289.3,0.2141]
[1757363242618,0.4113,4289.4,4289.3,0.4511]
[1757363242818,1.30065742,4289.4,4289.3,0.4511]
[1757363243221,1.30065742,4289.4,4289.3,0.237]
[1757363244925,0.5049,4288.3,4288.2,0.7223]
[1757363245125,0.5049,4288.3,4288.2,0.9593]
[1757363246525,0.3049,4288.3,4288.2,0.9593]
[1757363246721,0.3049,4288.9,4288.2,0.6561]
[1757363247021,0.7162,4288.9,4288.8,0.2141]
[1757363247222,0.7162,4288.9,4288.8,0.4511]
[1757363247922,0.7162,4288.9,4288.8,0.6561]
[1757363248730,0.7162,4288.9,4288.8,0.237]
[1757363253528,0.1187,4288.5,4288.1,33.594]
[1757363253730,0.5049,4288.2,4288.1,33.594]
[1757363253937,0.6236,4288.5,4288.4,0.7223]
[1757363254836,0.5049,4288.5,4288.4,0.7223]
[1757363256836,0.3049,4288.5,4288.4,0.7223]
[1757363257037,0.5049,4288.5,4288.4,0.7223]
[1757363257838,0.8349,4288.5,4288.4,0.7223]
[1757363258841,0.8349,4288.5,4288.4,0.9593]
[1757363259840,0.5049,4288.5,4288.4,0.9593]
[1757363260044,0.3049,4288.5,4288.4,0.9593]
[1757363261243,0.5049,4288.5,4288.4,0.9593]
[1757363262343,0.3049,4288.5,4288.4,0.9593]
[1757363264131,0.5049,4288.5,4288.4,0.9593]
[1757363264643,0.6236,4288.5,4288.4,0.9593]
[1757363265738,0.8349,4288.5,4288.4,0.9593]
[1757363266238,0.8349,4288.5,4288.4,0.6561]
[1757363271250,0.8349,4288.5,4288.4,0.9591]
[1757363275354,0.8349,4288.5,4288.4,0.6561]
[1757363275755,0.8349,4288.5,4288.4,0.9591]
[1757363277656,0.8349,4288.5,4288.4,0.6561]
[1757363277863,0.3198,4288.4,4288.0,2.06862597]
[1757363278059,0.4153,4288.2,4288.1,0.237]
[1757363278353,0.7351,4288.2,4288.1,0.237]
[1757363279959,0.1198,4288.0,4287.9,0.00349924]
[1757363280160,0.8549,4288.0,4287.9,0.24049924]
[1757363280358,0.8549,4288.0,4287.9,0.45259924]
[1757363286962,0.8549,4288.0,4287.9,0.24049924]
[1757363297364,0.4265,4286.7,4286.6,0.7187]
[1757363297670,0.2977,4286.7,4286.6,1.07819839]
[1757363297863,0.2977,4286.9,4286.8,0.1984]
[1757363298170,0.1193,4287.5,4286.8,0.406]
[1757363298171,0.2977,4287.4,4286.8,0.406]
[1757363298368,0.2977,4287.4,4287.3,0.7187]
[1757363298569,0.2977,4287.4,4287.3,0.9557]
[1757363298767,0.5105,4287.4,4287.3,0.9557]
[1757363299163,0.7242,4287.4,4287.3,0.9557]
[1757363305569,0.5105,4287.4,4287.3,0.9557]
[1757363312973,0.1198,4288.0,4287.3,0.9557]
[1757363313172,0.844,4288.0,4287.9,0.1984]
[1757363313373,0.844,4288.0,4287.9,0.4344]
[1757363313572,0.844,4288.0,4287.9,0.236]